fUSD/lending_fUSD_20250823
["ID","MTS","AMOUNT","RATE_DAILY","PERIOD"]
[380966270,1755912847311,-649.66,0.00019726,2]
[380966271,1755912847323,-784.4,0.00019726,2]
[380966272,1755912847332,-527.2,0.00019726,2]
[380966273,1755912847342,-971.12,0.00019726,2]
[380966274,1755912847353,-634.12,0.00019726,2]
[380966275,1755912847362,-1154.79,0.00019726,2]
[380966276,1755912847373,-726.51,0.00019726,2]
[380966277,1755912847383,-754.33,0.00019726,2]
[380966278,1755912847393,-1099.97,0.00019726,2]
[380966279,1755912847403,-1157.08,0.00019726,2]
[380966280,1755912847414,-535.95,0.00019726,2]
[380966281,1755912847426,-888.95,0.00019726,2]
[380966282,1755912847436,-691.37,0.00019726,2]
[380966283,1755912847447,-656.19,0.00019726,2]
[380966284,1755912847457,-985.25,0.00019726,2]
[380966285,1755912847467,-807.2,0.00019726,2]
[380966286,1755912847477,-1203.18,0.00019726,2]
[380966287,1755912847486,-1439.09,0.00019726,2]
[380966288,1755912847496,-659.77,0.00019726,2]
[380966289,1755912847505,-583.57,0.00019726,2]
[380966290,1755912847515,-731.16,0.00019726,2]
[380966291,1755912847525,-766.72,0.00019726,2]
[380966292,1755912847534,-890.52,0.00019726,2]
[380966293,1755912847544,-855.77,0.00019726,2]
[380966294,1755912847554,-635.62,0.00019726,2]
[380966295,1755912847564,-986.02,0.00019726,2]
[380966296,1755912847575,-466.03,0.00019726,2]
[380966297,1755912847584,-963.55,0.00019726,2]
[380966298,1755912847594,-482.07,0.00019726,2]
[380966299,1755912847604,-1494.7,0.00019726,2]
[380966300,1755912847614,-507.72,0.00019726,2]
[380966301,1755912847624,-777.58,0.00019726,2]
[380966302,1755912847633,-859.0,0.00019726,2]
[380966303,1755912847643,-828.37,0.00019726,2]
[380966304,1755912847653,-967.68,0.00019726,2]
[380966305,1755912847663,-506.23,0.00019726,2]
[380966306,1755912847673,-479.67,0.00019726,2]
[380966307,1755912847683,-781.12,0.00019726,2]
[380966308,1755912847693,-755.98,0.00019726,2]
[380966309,1755912847704,-937.77,0.00019726,2]
[380966310,1755912847714,-941.46,0.00019726,2]
[380966311,1755912847724,-979.86,0.00019726,2]
[380966312,1755912847734,-650.0,0.00019726,2]
[380966313,1755912847744,-873.74,0.00019726,2]
[380966314,1755912847753,-1039.23,0.00019726,2]
[380966315,1755912847764,-461.44312884,0.00019726,2]
[380966316,1755912847774,-505.4,0.00019726,2]
[380966317,1755912847784,-764.74,0.00019726,2]
[380966318,1755912847793,-545.13,0.00019726,2]
[380966319,1755912847803,-792.76,0.00019726,2]
[380966320,1755912847813,-822.02,0.00019726,2]
[380966321,1755912847824,-958.27,0.00019726,2]
[380966322,1755912847833,-493.69,0.00019726,2]
[380966323,1755912847843,-724.98,0.00019726,2]
[380966324,1755912847853,-550.01,0.00019726,2]
[380966325,1755912847863,-957.7,0.00019726,2]
[380966326,1755912847873,-712.18,0.00019726,2]
[380966327,1755912847883,-484.95,0.00019726,2]
[380966328,1755912847892,-532.46,0.00019726,2]
[380966329,1755912847902,-839.82,0.00019726,2]
[380966330,1755912847912,-3061.19,0.00019726,2]
[380966331,1755912847922,-402.87,0.00019726,2]
[380966332,1755912847933,-668.01,0.00019726,2]
[380966333,1755912847946,-440.73,0.00019726,2]
[380966334,1755912847957,-911.43,0.00019726,2]
[380966335,1755912847968,-931.59,0.00019726,2]
[380966336,1755912847980,-303.42429559,0.00019726,2]
[380966337,1755912847990,-585.39,0.00019726,2]
[380966338,1755912848000,-250.0,0.00019726,2]
[380966339,1755912848023,-156.587,0.00019726,2]
[380966340,1755912848047,-153.0,0.00019738,2]
[380966341,1755912848067,-153.0,0.00019738,2]
[380966342,1755912848090,-1159.864,0.000198,2]
[380966343,1755912848109,-1159.864,0.000198,2]
[380966344,1755912848128,-1159.864,0.000198,2]
[380966345,1755912848149,-1159.864,0.000198,2]
[380966346,1755912848170,-1159.864,0.000198,2]
[380966347,1755912848189,-3021.77149642,0.000198,5]
[380966348,1755912848208,-1000.0,0.00019823,2]
[380966349,1755912848229,-6292.23683244,0.00019852,2]
[380966350,1755912848244,-1100.05,0.00019863,2]
[380966351,1755912848263,-74991.85947223,0.0001987,2]
[380966352,1755912849887,-578.64133037,0.0001099,2]
[380966353,1755912849898,-578.64133037,0.0001099,2]
[380966354,1755912849908,-151.734288,0.00011,2]
[380966355,1755912849920,-180.825234,0.00013698,2]
[380966356,1755912849930,-401.15464297,0.00013698,2]
[380966357,1755912849940,-400.0,0.00013698,2]
[380966358,1755912849950,-600.29,0.00013698,2]
[380966359,1755912849959,-400.0,0.00013698,2]
[380966360,1755912849969,-400.0,0.00013698,2]
[380966361,1755912849978,-384.01317429,0.00013972,2]
[380966362,1755912850134,-0.00375742,0.00013972,2]
[380966363,1755912850282,-465.09306829,0.00013972,2]
[380966364,1755912850292,-180.825234,0.00013972,2]
[380966365,1755912851642,-400.0,0.00013972,2]
[380966366,1755912851659,-215.79741564,0.00013972,2]
[380966367,1755912851774,-384.49258436,0.00013972,2]
[380966368,1755912851794,-400.0,0.00013972,2]
[380966369,1755912851804,-97.94191925,0.00013972,2]
[380966370,1755912851816,-302.05808075,0.00013972,2]
[380966371,1755912851828,-849.11,0.00014246,2]
[380966372,1755912851837,-400.0,0.00014246,2]
[380966373,1755912851847,-180.825234,0.00014246,2]
[380966374,1755912851857,-600.29,0.00014246,2]
[380966375,1755912851867,-849.11,0.0001452,2]
[380966376,1755912851876,-400.0,0.0001452,2]
[380966377,1755912851885,-180.825234,0.0001452,2]
[380966378,1755912851895,-849.11,0.00014794,2]
[380966379,1755912851904,-400.0,0.00014794,2]
[380966380,1755912851915,-150.0,0.00015068,2]
[380966381,1755912851924,-849.11,0.00015068,2]
[380966382,1755912851933,-150.62710961,0.00015342,2]
[380966383,1755912851945,-468.81,0.00016712,2]
[380966384,1755912851955,-468.81,0.00016986,2]
[380966385,1755912851965,-468.81,0.0001726,2]
[380966386,1755912851977,-400.0,0.00017534,2]
[380966387,1755912851987,-980.7,0.00017534,2]
[380966388,1755912851996,-468.81,0.00017534,2]
[380966389,1755912852007,-627.98,0.00017808,2]
[380966390,1755912852016,-840.52,0.00017808,2]
[380966391,1755912852026,-400.0,0.00017808,2]
[380966392,1755912852036,-980.7,0.00017808,2]
[380966393,1755912852046,-468.81,0.00017808,2]
[380966394,1755912852056,-627.98,0.00018082,2]
[380966395,1755912852066,-840.52,0.00018082,2]
[380966396,1755912852077,-400.0,0.00018082,2]
[380966397,1755912852087,-980.7,0.00018082,2]
[380966398,1755912852097,-468.81,0.00018082,2]
[380966399,1755912852107,-408.02,0.00018356,2]
[380966400,1755912852116,-627.98,0.00018356,2]
[380966401,1755912852126,-840.52,0.00018356,2]
[380966402,1755912852136,-400.0,0.00018356,2]
[380966403,1755912852145,-468.81,0.00018356,2]
[380966404,1755912852155,-613.21,0.0001863,2]
[380966405,1755912852166,-408.02,0.0001863,2]
[380966406,1755912852175,-627.98,0.0001863,2]
[380966407,1755912852185,-840.52,0.0001863,2]
[380966408,1755912852194,-400.0,0.0001863,2]
[380966409,1755912852203,-613.21,0.00018904,2]
[380966410,1755912852212,-408.02,0.00018904,2]
[380966411,1755912852222,-464.46,0.00018904,2]
[380966412,1755912852232,-627.98,0.00018904,2]
[380966413,1755912852242,-840.52,0.00018904,2]
[380966414,1755912852252,-613.21,0.00019178,2]
[380966415,1755912852262,-408.02,0.00019178,2]
[380966416,1755912852271,-464.46,0.00019178,2]
[380966417,1755912852281,-627.98,0.00019178,2]
[380966418,1755912852290,-840.52,0.00019178,2]
[380966419,1755912852299,-821.68,0.00019452,2]
[380966420,1755912852308,-631.42,0.00019452,2]
[380966421,1755912852318,-408.02,0.00019452,2]
[380966422,1755912852328,-613.21,0.00019452,2]
[380966423,1755912852337,-464.46,0.00019452,2]
[380966424,1755912852347,-821.68,0.00019726,2]
[380966425,1755912852357,-631.42,0.00019726,2]
[380966426,1755912852366,-464.46,0.00019726,2]
[380966427,1755912852378,-408.02,0.00019726,2]
[380966428,1755912852388,-687610.13910765,0.0001987,2]
[380966429,1755912852398,-1000.0,0.00019879,2]
[380966430,1755912852407,-152.0,0.00019884,4]
[380966431,1755912852417,-1076.89,0.00019896,2]
[380966432,1755912852429,-173.67,0.00019896,2]
[380966433,1755912852438,-4820.43699626,0.000199,3]
[380966434,1755912852448,-8845.57168841,0.000199,2]
[380966435,1755912852457,-568729.48768344,0.0001995,15]
[380966436,1755912852467,-2339.7041548,0.0001995,15]
[380966437,1755912852477,-514.0,0.0001997,2]
[380966438,1755912852486,-549.67,0.00019982,2]
[380966439,1755912852495,-77006.53454884,0.00019985,2]
[380966440,1755912852506,-151.0,0.00019993,2]
[380966441,1755912852515,-733.0,0.0002,2]
[380966442,1755912852525,-1367.0,0.0002,2]
[380966443,1755912852535,-500.0,0.0002,2]
[380966444,1755912852544,-2066.0,0.0002,2]
[380966445,1755912852553,-500.0,0.0002,2]
[380966446,1755912852563,-45923.27238576,0.0002,2]
[380966447,1755912852573,-93254.50524263,0.0002,2]
[380966448,1755912852583,-1503.25342493,0.0002,2]
[380966449,1755912852592,-6005.28174375,0.0002,2]
[380966450,1755912852601,-1433.55889683,0.0002,5]
[380966451,1755912852610,-25093.70913108,0.0002,2]
[380966452,1755912852620,-362178.25553664,0.0002,5]
[380966453,1755912852629,-200.0,0.0002,2]
[380966454,1755912852638,-8300.0,0.0002,4]
[380966455,1755912852647,-5735.31731046,0.0002,2]
[380966456,1755912852657,-3950.0,0.0002,2]
[380966457,1755912852666,-1269.4583058,0.0002,2]
[380966458,1755912852675,-4060.76893837,0.0002,2]
[380966459,1755912852684,-7231.5973673,0.0002,2]
[380966460,1755912852694,-2028.15485687,0.0002,3]
[380966461,1755912852704,-2789.49264371,0.0002,7]
[380966462,1755912852713,-486.43963511,0.0002,10]
[380966463,1755912852722,-2807.14050404,0.0002,2]
[380966464,1755912852731,-11067.95826967,0.0002,20]
[380966465,1755912852740,-13085.5551353,0.0002,14]
[380966466,1755912852749,-1800.0,0.0002,5]
[380966467,1755912852758,-1899.0,0.0002,5]
[380966468,1755912852767,-223.80484134,0.0002,2]
[380966469,1755912852776,-59419.0,0.0002,7]
[380966470,1755912852786,-2513.59349083,0.0002,2]
[380966471,1755912852795,-100366.542816,0.0002,2]
[380966472,1755912852805,-1107.5132754,0.0002,2]
[380966473,1755912852814,-152.0,0.0002,7]
[380966474,1755912852825,-500.0,0.0002,2]
[380966475,1755912852834,-1570.42840463,0.0002,2]
[380966476,1755912852844,-85713.75755487,0.0002,2]
[380966477,1755912852853,-1005.57705213,0.0002,5]
[380966478,1755912852862,-10611.29417848,0.0002,2]
[380966479,1755912852871,-1472.02539642,0.0002,2]
[380966480,1755912852881,-302.91674983,0.0002,2]
[380966481,1755912852891,-8365.80324242,0.0002,5]
[380966482,1755912852899,-1264.77652905,0.0002,5]
[380966483,1755912852909,-4104.03943704,0.0002,2]
[380966484,1755912852919,-2538.0107356,0.0002,5]
[380966485,1755912852929,-500.0,0.0002,7]
[380966486,1755912852938,-500.0,0.0002,7]
[380966487,1755912852947,-500.0,0.0002,7]
[380966488,1755912852956,-500.0,0.0002,7]
[380966489,1755912852965,-500.0,0.0002,7]
[380966490,1755912852974,-500.0,0.0002,7]
[380966491,1755912852983,-500.0,0.0002,7]
[380966492,1755912852992,-500.0,0.0002,7]
[380966493,1755912853001,-500.0,0.0002,7]
[380966494,1755912853010,-500.0,0.0002,7]
[380966495,1755912853019,-500.0,0.0002,7]
[380966496,1755912853030,-500.0,0.0002,7]
[380966497,1755912853039,-500.0,0.0002,7]
[380966498,1755912853048,-500.0,0.0002,7]
[380966499,1755912853057,-500.0,0.0002,7]
[380966500,1755912853066,-500.0,0.0002,7]
[380966501,1755912853076,-500.0,0.0002,7]
[380966502,1755912853085,-500.0,0.0002,7]
[380966503,1755912853094,-500.0,0.0002,7]
[380966504,1755912853103,-500.0,0.0002,7]
[380966505,1755912853112,-500.0,0.0002,7]
[380966506,1755912853121,-500.0,0.0002,7]
[380966507,1755912853130,-500.0,0.0002,7]
[380966508,1755912853139,-500.0,0.0002,7]
[380966509,1755912853148,-500.0,0.0002,7]
[380966510,1755912853157,-500.0,0.0002,7]
[380966511,1755912853166,-500.0,0.0002,7]
[380966512,1755912853175,-500.0,0.0002,7]
[380966513,1755912853184,-500.0,0.0002,7]
[380966514,1755912853193,-500.0,0.0002,7]
[380966515,1755912853202,-500.0,0.0002,7]
[380966516,1755912853211,-500.0,0.0002,7]
[380966517,1755912853220,-500.0,0.0002,7]
[380966518,1755912853229,-500.0,0.0002,7]
[380966519,1755912853239,-500.0,0.0002,7]
[380966520,1755912853248,-500.0,0.0002,7]
[380966521,1755912853257,-500.0,0.0002,7]
[380966522,1755912853266,-500.0,0.0002,7]
[380966523,1755912853275,-500.0,0.0002,7]
[380966524,1755912853284,-500.0,0.0002,7]
[380966525,1755912853293,-500.0,0.0002,7]
[380966526,1755912853302,-500.0,0.0002,7]
[380966527,1755912853312,-500.0,0.0002,7]
[380966528,1755912853321,-500.0,0.0002,7]
[380966529,1755912853332,-500.0,0.0002,7]
[380966530,1755912853341,-500.0,0.0002,7]
[380966531,1755912853351,-500.0,0.0002,7]
[380966532,1755912853360,-500.0,0.0002,7]
[380966533,1755912853369,-500.0,0.0002,7]
[380966534,1755912853378,-500.0,0.0002,7]
[380966535,1755912853387,-500.0,0.0002,7]
[380966536,1755912853397,-500.0,0.0002,7]
[380966537,1755912853406,-500.0,0.0002,7]
[380966538,1755912853415,-500.0,0.0002,7]
[380966539,1755912853427,-500.0,0.0002,7]
[380966540,1755912853436,-500.0,0.0002,7]
[380966541,1755912853445,-500.0,0.0002,7]
[380966542,1755912853454,-500.0,0.0002,7]
[380966543,1755912853464,-500.0,0.0002,7]
[380966544,1755912853473,-500.0,0.0002,7]
[380966545,1755912853483,-500.0,0.0002,7]
[380966546,1755912853491,-500.0,0.0002,7]
[380966547,1755912853501,-500.0,0.0002,7]
[380966548,1755912853510,-500.0,0.0002,7]
[380966549,1755912853519,-500.0,0.0002,7]
[380966550,1755912853528,-500.0,0.0002,7]
[380966551,1755912853538,-500.0,0.0002,7]
[380966552,1755912853547,-500.0,0.0002,7]
[380966553,1755912853557,-500.0,0.0002,7]
[380966554,1755912853566,-500.0,0.0002,7]
[380966555,1755912853577,-500.0,0.0002,7]
[380966556,1755912853587,-500.0,0.0002,7]
[380966557,1755912853596,-500.0,0.0002,7]
[380966558,1755912853605,-500.0,0.0002,7]
[380966559,1755912853615,-500.0,0.0002,7]
[380966560,1755912853624,-407.04,0.0002,7]
[380966561,1755912853634,-5598.48018948,0.0002,2]
[380966562,1755912853644,-785.6321987,0.0002,7]
[380966563,1755912853654,-7390.06048295,0.0002,2]
[380966564,1755912853664,-404.25,0.0002,2]
[380966565,1755912853674,-957.24,0.0002,2]
[380966566,1755912853685,-500.50088318,0.0002,2]
[380966567,1755912853695,-691.37163408,0.0002,2]
[380966568,1755912853706,-484.33359626,0.0002,2]
[380966569,1755912853716,-564.05389867,0.0002,2]
[380966570,1755912853726,-922.71057554,0.0002,2]
[380966571,1755912853735,-1309.97122089,0.0002,2]
[380966572,1755912853744,-410.65,0.0002,2]
[380966573,1755912853754,-814.43564951,0.0002,2]
[380966574,1755912853763,-703.81669057,0.0002,2]
[380966575,1755912853772,-416.89517075,0.0002,2]
[380966576,1755912853782,-552.98411178,0.0002,2]
[380966577,1755912853791,-565.33845179,0.0002,2]
[380966578,1755912853800,-457.56,0.0002,2]
[380966579,1755912853809,-156.98443884,0.0002,2]
[380966580,1755912853818,-454.29960365,0.0002,2]
[380966581,1755912853828,-408.54019751,0.0002,2]
[380966582,1755912853838,-429.30326175,0.0002,2]
[380966583,1755912853847,-582.552001,0.0002,2]
[380966584,1755912853856,-759.96073719,0.0002,2]
[380966585,1755912853865,-591.47504996,0.0002,2]
[380966586,1755912853875,-414.10223119,0.0002,2]
[380966587,1755912853884,-649.87882779,0.0002,2]
[380966588,1755912853894,-150.0,0.0002,5]
[380966589,1755912853903,-446.55430889,0.0002,2]
[380966590,1755912853912,-506.53,0.0002,2]
[380966591,1755912853922,-715.05943523,0.0002,2]
[380966592,1755912853932,-537.25066887,0.0002,2]
[380966593,1755912853941,-211.65343171,0.0002,2]
[380966594,1755912853950,-512.55,0.0002,2]
[380966595,1755912853961,-527.59,0.0002,2]
[380966596,1755912853970,-521.31067172,0.0002,2]
[380966597,1755912853979,-446.98472763,0.0002,2]
[380966598,1755912853988,-449.47408317,0.0002,2]
[380966599,1755912853997,-675.17218451,0.0002,2]
[380966600,1755912854006,-654.17862039,0.0002,2]
[380966601,1755912854015,-609.32884056,0.0002,2]
[380966602,1755912854024,-662.07733479,0.0002,2]
[380966603,1755912854034,-569.00241922,0.0002,2]
[380966604,1755912854043,-710.03149153,0.0002,2]
[380966605,1755912854052,-812.88565094,0.0002,2]
[380966606,1755912854062,-437.50168855,0.0002,2]
[380966607,1755912854071,-586.58764963,0.0002,2]
[380966608,1755912854083,-442.46747219,0.0002,2]
[380966609,1755912854092,-562.79873814,0.0002,2]
[380966610,1755912854102,-845.78001457,0.0002,2]
[380966611,1755912854111,-441.28,0.0002,2]
[380966612,1755912854121,-530.17758752,0.0002,2]
[380966613,1755912854130,-421.90177082,0.0002,2]
[380966614,1755912854140,-570.60879307,0.0002,2]
[380966615,1755912854149,-464.48226603,0.0002,2]
[380966616,1755912854159,-415.44235612,0.0002,2]
[380966617,1755912854168,-531.13888465,0.0002,2]
[380966618,1755912854177,-512.55,0.0002,2]
[380966619,1755912854187,-516.90221317,0.0002,2]
[380966620,1755912854196,-409.58186403,0.0002,2]
[380966621,1755912854205,-499.7442445,0.0002,2]
[380966622,1755912854215,-578.06296793,0.0002,2]
[380966623,1755912854224,-181.76585294,0.0002,2]
[380966624,1755912854233,-476.93931373,0.0002,2]
[380966625,1755912854243,-637.73574796,0.0002,2]
[380966626,1755912854253,-423.90521083,0.0002,2]
[380966627,1755912854262,-459.30425398,0.0002,2]
[380966628,1755912854272,-873.60886203,0.0002,2]
[380966629,1755912854281,-571.8259872,0.0002,2]
[380966630,1755912854291,-410.04389913,0.0002,2]
[380966631,1755912854300,-550.0599829,0.0002,2]
[380966632,1755912854309,-194.48692123,0.0002,2]
[380966633,1755912854318,-531.61075517,0.0002,2]
[380966634,1755912854329,-1704.44,0.0002,2]
[380966635,1755912854339,-456.40014568,0.0002,2]
[380966636,1755912854349,-890.33291111,0.0002,2]
[380966637,1755912854358,-406.25,0.0002,2]
[380966638,1755912854367,-421.5322529,0.0002,2]
[380966639,1755912854377,-478.63693662,0.0002,2]
[380966640,1755912854386,-487.16572235,0.0002,2]
[380966641,1755912854396,-542.5921136,0.0002,2]
[380966642,1755912854404,-511.03699878,0.0002,2]
[380966643,1755912854414,-451.04918276,0.0002,2]
[380966644,1755912854424,-477.03379008,0.0002,2]
[380966645,1755912854437,-595.92,0.0002,2]
[380966646,1755912854447,-668.02630249,0.0002,2]
[380966647,1755912854456,-754.99347559,0.0002,2]
[380966648,1755912854466,-1030.17469477,0.0002,2]
[380966649,1755912854477,-511.08920551,0.0002,2]
[380966650,1755912854486,-437.20304246,0.0002,2]
[380966651,1755912854496,-657.37433829,0.0002,2]
[380966652,1755912854507,-417.67758273,0.0002,2]
[380966653,1755912854516,-1067.86,0.0002,2]
[380966654,1755912854526,-578.62,0.0002,2]
[380966655,1755912854536,-786.23639586,0.0002,2]
[380966656,1755912854545,-1145.86230438,0.0002,2]
[380966657,1755912854555,-625.0491139,0.0002,2]
[380966658,1755912854565,-440.1,0.0002,2]
[380966659,1755912854575,-734.3819527,0.0002,2]
[380966660,1755912854584,-716.28645137,0.0002,2]
[380966661,1755912854594,-677.39471919,0.0002,2]
[380966662,1755912854603,-350.86329301,0.0002,2]
[380966663,1755912854613,-652.09356261,0.0002,2]
[380966664,1755912854622,-831.68,0.0002,2]
[380966665,1755912854632,-742.45,0.0002,2]
[380966666,1755912854642,-504.00338079,0.0002,2]
[380966667,1755912854651,-541.95876206,0.0002,2]
[380966668,1755912854661,-462.17063316,0.0002,2]
[380966669,1755912854671,-422.57,0.0002,2]
[380966670,1755912854680,-535.87322251,0.0002,2]
[380966671,1755912854690,-599.04265009,0.0002,2]
[380966672,1755912854699,-601.73,0.0002,2]
[380966673,1755912854709,-729.10795681,0.0002,2]
[380966674,1755912854719,-482.13493771,0.0002,2]
[380966675,1755912854729,-561.00770462,0.0002,2]
[380966676,1755912854738,-648.34942623,0.0002,2]
[380966677,1755912854747,-485.12630894,0.0002,2]
[380966678,1755912854758,-581.65509572,0.0002,2]
[380966679,1755912854767,-607.74831846,0.0002,2]
[380966680,1755912854777,-483.76368204,0.0002,2]
[380966681,1755912854787,-506.34820061,0.0002,2]
[380966682,1755912854797,-657.14737303,0.0002,2]
[380966683,1755912854806,-460.36213728,0.0002,2]
[380966684,1755912854815,-664.6155332,0.0002,2]
[380966685,1755912854826,-463.23,0.0002,2]
[380966686,1755912854835,-518.31074435,0.0002,2]
[380966687,1755912854845,-548.17225694,0.0002,2]
[380966688,1755912854854,-623.44597526,0.0002,2]
[380966689,1755912854864,-491.00043522,0.0002,2]
[380966690,1755912854874,-407.99920258,0.0002,2]
[380966691,1755912854883,-538.88405263,0.0002,2]
[380966692,1755912854895,-492.24067097,0.0002,2]
[380966693,1755912854906,-585.5274067,0.0002,2]
[380966694,1755912854916,-704.88122398,0.0002,2]
[380966695,1755912854928,-419.64,0.0002,2]
[380966696,1755912854939,-536.48557016,0.0002,2]
[380966697,1755912854949,-416.10867277,0.0002,2]
[380966698,1755912854959,-685.93836143,0.0002,2]
[380966699,1755912854969,-475.74704467,0.0002,2]
[380966700,1755912854979,-1266.17975406,0.0002,2]
[380966701,1755912854989,-433.94,0.0002,2]
[380966702,1755912854998,-175.52,0.0002,2]
[380966703,1755912855008,-428.37386679,0.0002,2]
[380966704,1755912855017,-427.76462818,0.0002,2]
[380966705,1755912855027,-544.11274854,0.0002,2]
[380966706,1755912855037,-763.84459408,0.0002,2]
[380966707,1755912855046,-482.09572618,0.0002,2]
[380966708,1755912855055,-552.55,0.0002,2]
[380966709,1755912855066,-794.17014903,0.0002,2]
[380966710,1755912855076,-477.17295671,0.0002,2]
[380966711,1755912855086,-607.90926532,0.0002,2]
[380966712,1755912855096,-772.31,0.0002,2]
[380966713,1755912855105,-577.8056841,0.0002,2]
[380966714,1755912855115,-446.31480495,0.0002,2]
[380966715,1755912855125,-499.86385996,0.0002,2]
[380966716,1755912855309,-544.07074273,0.0002,2]
[380966717,1755912855319,-707.34,0.0002,2]
[380966718,1755912855330,-156.17461,0.0002,2]
[380966719,1755912855340,-475.52375117,0.0002,2]
[380966720,1755912855350,-602.2296738,0.0002,2]
[380966721,1755912855359,-496.74423709,0.0002,2]
[380966722,1755912855369,-480.41,0.0002,2]
[380966723,1755912855379,-753.02527731,0.0002,2]
[380966724,1755912855388,-633.80732685,0.0002,2]
[380966725,1755912855398,-560.61548582,0.0002,2]
[380966726,1755912855408,-416.18,0.0002,2]
[380966727,1755912855418,-428.96,0.0002,2]
[380966728,1755912855431,-614.27917786,0.0002,2]
[380966729,1755912855441,-425.31,0.0002,2]
[380966730,1755912855451,-508.83459069,0.0002,2]
[380966731,1755912855460,-471.05,0.0002,2]
[380966732,1755912855470,-418.73370534,0.0002,2]
[380966733,1755912855480,-535.45,0.0002,2]
[380966734,1755912855490,-193.17723,0.0002,2]
[380966735,1755912855501,-173.2587252,0.0002,2]
[380966736,1755912855511,-747.96014497,0.0002,2]
[380966737,1755912855523,-375.09311658,0.0002,2]
[380966738,1755912855533,-434.03962746,0.0002,2]
[380966739,1755912855544,-472.70746933,0.0002,2]
[380966740,1755912855554,-855.010025,0.0002,2]
[380966741,1755912855563,-631.8373887,0.0002,2]
[380966742,1755912855572,-479.27766291,0.0002,2]
[380966743,1755912855582,-737.54630466,0.0002,2]
[380966744,1755912855591,-473.10152855,0.0002,2]
[380966745,1755912855601,-464.58446202,0.0002,2]
[380966746,1755912855611,-451.55295534,0.0002,2]
[380966747,1755912855620,-605.4406525,0.0002,2]
[380966748,1755912855630,-763.88811664,0.0002,2]
[380966749,1755912855639,-437.59195176,0.0002,2]
[380966750,1755912855649,-496.42379782,0.0002,2]
[380966751,1755912855658,-517.78029479,0.0002,2]
[380966752,1755912855668,-212.08495325,0.0002,7]
[380966753,1755912855678,-599.59400324,0.0002,2]
[380966754,1755912855687,-578.8398401,0.0002,2]
[380966755,1755912855697,-531.97377201,0.0002,2]
[380966756,1755912855706,-596.47821883,0.0002,2]
[380966757,1755912855715,-876.57187687,0.0002,2]
[380966758,1755912855725,-482.04224394,0.0002,2]
[380966759,1755912855735,-750.71659115,0.0002,2]
[380966760,1755912855745,-484.0153041,0.0002,2]
[380966761,1755912855755,-430.06222496,0.0002,2]
[380966762,1755912855764,-583.61316935,0.0002,2]
[380966763,1755912855774,-173.69494909,0.0002,2]
[380966764,1755912855783,-2560.07901032,0.0002,2]
[380966765,1755912855793,-412.69417076,0.0002,2]
[380966766,1755912855802,-714.62029476,0.0002,2]
[380966767,1755912855811,-466.479531,0.0002,2]
[380966768,1755912855821,-512.15268799,0.0002,2]
[380966769,1755912855832,-483.05295817,0.0002,2]